bitfinex/quotes_BTCUSD_20250421
["timestamp","ask_amount","ask_price","bid_price","bid_amount"]
[1745267128738,6.79e-05,87135.0,87134.0,0.34753336]
[1745267128978,0.01589339,87135.0,87134.0,0.34753336]
[1745267133365,0.24542228,87135.0,87134.0,0.11800184]
[1745267133568,0.01589339,87135.0,87134.0,0.11800184]
[1745267134172,0.01589339,87135.0,87134.0,0.34753336]
[1745267135441,0.01589339,87135.0,87134.0,0.11800184]
[1745267137440,0.24542228,87135.0,87134.0,0.11800184]
[1745267140701,0.01589339,87135.0,87134.0,0.11800184]
[1745267140883,0.24542228,87135.0,87134.0,0.11800184]
[1745267141248,0.01589339,87135.0,87134.0,0.11800184]
[1745267141371,0.24542228,87135.0,87134.0,0.11800184]
[1745267141572,0.01589339,87135.0,87134.0,0.11800184]
[1745267144242,0.01589339,87135.0,87134.0,0.34753336]
[1745267145902,0.01589339,87135.0,87134.0,0.11800184]
[1745267146277,0.01589339,87135.0,87134.0,0.34753336]
[1745267151429,0.01589339,87135.0,87134.0,0.11800184]
[1745267151823,0.01589339,87135.0,87134.0,0.34753336]
[1745267153811,0.24542228,87135.0,87134.0,0.11800184]
[1745267153961,0.01589339,87135.0,87134.0,0.11800184]
[1745267154171,0.01589339,87135.0,87132.0,0.22953614]
[1745267154172,0.50737433,87135.0,87120.0,0.0004221]
[1745267154337,0.22956577,87121.0,87120.0,0.0004221]
[1745267154536,0.36956577,87121.0,87120.0,0.0004221]
[1745267154746,0.38538449,87121.0,87120.0,0.0004221]
[1745267156135,0.38538449,87121.0,87120.0,0.0014221]
[1745267156283,0.38538449,87121.0,87120.0,0.0034221]
[1745267156695,0.38538449,87121.0,87120.0,0.0014221]
[1745267156872,0.38538449,87121.0,87120.0,0.0034221]
[1745267160031,0.75927951,87121.0,87120.0,0.0034221]
[1745267162173,0.80567951,87121.0,87120.0,0.0034221]
[1745267162404,0.52971374,87121.0,87120.0,0.0034221]
[1745267162604,0.38971374,87121.0,87120.0,0.23299051]
[1745267163140,0.37389502,87134.0,87133.0,0.22953416]
[1745267163398,0.37389502,87134.0,87130.0,0.22954092]
[1745267163743,0.3894508,87134.0,87133.0,0.22953416]
[1745267165433,0.3894508,87134.0,87132.0,0.22953679]
[1745267169273,0.0114767,87133.0,87130.0,0.22954092]
[1745267169406,0.0114767,87133.0,87131.0,0.22953852]
[1745267169620,0.01567467,87132.0,87131.0,0.22953852]
[1745267171876,0.61490317,87134.0,87131.0,0.22953852]
[1745267172417,0.01567467,87133.0,87131.0,0.22953852]
[1745267173969,0.01567467,87133.0,87132.0,0.22953679]
[1745267174168,0.01147683,87132.0,87130.0,0.22954192]
[1745267174483,0.01567467,87133.0,87132.0,0.22953679]
[1745267174704,0.37389502,87134.0,87120.0,0.54063871]
[1745267174881,0.2410193,87130.0,87127.0,0.22954951]
[1745267175085,0.2410193,87130.0,87128.0,0.11375594]
[1745267175611,0.2410193,87130.0,87120.0,0.01190052]
[1745267175612,0.22956577,87121.0,87120.0,0.0004221]
[1745267176941,0.22956577,87121.0,87120.0,0.0024221]
[1745267177351,0.22956577,87121.0,87120.0,0.0004221]
[1745267178609,0.22956577,87121.0,87120.0,0.0014221]
[1745267178806,0.22956577,87121.0,87120.0,0.0004221]
[1745267180496,0.60346079,87121.0,87120.0,0.0004221]
[1745267188177,0.61346079,87121.0,87120.0,0.0004221]
[1745267188984,0.62916688,87121.0,87120.0,0.0004221]
[1745267194969,0.72916688,87121.0,87120.0,0.0004221]
[1745267197037,0.71916688,87121.0,87120.0,0.0004221]
[1745267213643,0.34527186,87121.0,87120.0,0.0004221]
[1745267216132,0.24527186,87121.0,87120.0,0.0004221]
[1745267238336,0.01570609,87121.0,87120.0,0.34374645]
[1745267238577,0.09988,87132.0,87120.0,0.34374645]
[1745267238578,0.09988,87132.0,87130.0,0.22954206]
[1745267238781,0.34089375,87132.0,87130.0,0.22954206]
[1745267238975,0.01548716,87131.0,87130.0,0.22954206]
[1745267240477,0.01548716,87131.0,87130.0,0.23054206]
[1745267241309,0.01548716,87131.0,87130.0,0.001]
[1745267241910,0.24502658,87131.0,87130.0,0.001]
[1745267263938,0.01548716,87131.0,87130.0,0.23054206]
[1745267264131,0.01548716,87131.0,87130.0,0.344298]
[1745267264337,6.79e-05,87135.0,87133.0,0.2295333]
[1745267264545,6.79e-05,87135.0,87134.0,0.34328746]
[1745267265921,6.79e-05,87135.0,87134.0,0.35492955]
[1745267267056,6.79e-05,87135.0,87134.0,0.12539803]
[1745267267962,0.22959679,87135.0,87134.0,0.12539803]
[1745267268104,6.79e-05,87135.0,87134.0,0.12539803]
[1745267268307,0.22959679,87135.0,87134.0,0.12539803]
[1745267272960,6.79e-05,87135.0,87134.0,0.12539803]
[1745267273176,0.22959679,87135.0,87134.0,0.12539803]
[1745267275194,6.79e-05,87135.0,87134.0,0.12539803]
[1745267275375,0.22959679,87135.0,87134.0,0.12539803]
[1745267277129,6.79e-05,87135.0,87134.0,0.12539803]
[1745267277844,0.22959679,87135.0,87134.0,0.12539803]
[1745267278213,0.24514627,87135.0,87134.0,0.12539803]
[1745267281383,0.24514627,87135.0,87134.0,0.11375594]
[1745267291209,0.24437721,87135.0,87134.0,0.11375594]
[1745267303593,0.24407374,87135.0,87134.0,0.11375594]
[1745267313187,0.24507837,87135.0,87134.0,0.11375594]
[1745267314281,0.24507837,87135.0,87134.0,0.13412405]
[1745267320259,0.24507837,87135.0,87134.0,0.11375594]
[1745267325589,0.22956577,87121.0,87120.0,0.0004221]
[1745267325811,0.23956577,87121.0,87120.0,0.0004221]
[1745267326024,0.25470614,87121.0,87120.0,0.0004221]
[1745267326827,0.25470614,87121.0,87120.0,0.0014221]
[1745267327207,0.25470614,87121.0,87120.0,0.0024221]
[1745267327611,0.25470614,87121.0,87120.0,0.0014221]
[1745267332059,0.35434614,87121.0,87120.0,0.0014221]
[1745267334141,0.35374603,87121.0,87120.0,0.0014221]
[1745267345391,0.11478037,87121.0,87120.0,0.0014221]
[1745267345723,0.11478037,87121.0,87120.0,0.23099051]
[1745267345908,0.11478037,87121.0,87120.0,0.34474645]
[1745267346103,0.09964,87121.0,87120.0,0.39184645]
[1745267346332,0.11111697,87131.0,87129.0,0.22954398]
[1745267346536,0.01492199,87130.0,87129.0,0.22954398]
[1745267346931,0.02639909,87130.0,87128.0,0.22954624]
[1745267347136,0.24102298,87129.0,87122.0,0.01147815]
[1745267347338,0.24102298,87129.0,87127.0,0.22954996]
[1745267347538,0.01492199,87128.0,87127.0,0.22954996]
[1745267347963,0.0114771,87130.0,87127.0,0.22954996]
[1745267348180,0.01492199,87129.0,87127.0,0.22954996]
[1745267349399,0.01492199,87129.0,87128.0,0.22954733]
[1745267350253,0.34065696,87131.0,87128.0,0.22954733]
[1745267350488,0.01492199,87129.0,87128.0,0.22954733]
[1745267350700,0.34065696,87131.0,87128.0,0.22954733]
[1745267350909,0.11111697,87131.0,87129.0,0.22954363]
[1745267351827,0.34065828,87131.0,87128.0,0.22954733]
[1745267351982,0.24101958,87130.0,87127.0,0.22954505]
[1745267353439,0.22954471,87129.0,87127.0,0.22954505]
[1745267353954,0.01492199,87128.0,87127.0,0.22954505]
[1745267354159,0.0114771,87130.0,87127.0,0.22954505]
[1745267354292,0.11111697,87131.0,87128.0,0.22954623]
[1745267354525,0.01147723,87129.0,87125.0,0.22955523]
[1745267354733,0.01492199,87128.0,87126.0,0.22955178]
[1745267354980,0.24102116,87130.0,87127.0,0.22954996]
[1745267355116,0.01492199,87129.0,87127.0,0.22954996]
[1745267355329,0.01492199,87129.0,87128.0,0.22954733]
[1745267356272,0.24101996,87130.0,87127.0,0.22954898]
[1745267356487,0.01501268,87129.0,87127.0,0.22954898]
[1745267356831,0.01501268,87129.0,87128.0,0.22954733]
[1745267357156,0.34065685,87131.0,87128.0,0.22954733]
[1745267357392,0.2445549,87130.0,87128.0,0.22954733]
[1745267357817,0.256032,87130.0,87127.0,0.22954898]
[1745267359174,0.01147723,87129.0,87126.0,0.22954765]
[1745267359379,0.01500729,87128.0,87126.0,0.22954765]
[1745267364209,0.24455596,87128.0,87124.0,0.22955781]
[1745267364382,0.01500729,87128.0,87127.0,0.22954996]
[1745267364618,0.09956,87132.0,87129.0,0.01147723]
[1745267364831,0.09956,87132.0,87131.0,0.22953942]
[1745267365296,0.11455852,87132.0,87131.0,0.22953942]
[1745267366612,0.09956,87132.0,87131.0,0.22953942]
[1745267368084,0.11455852,87132.0,87131.0,0.22953942]
[1745267369446,0.11455852,87132.0,87130.0,0.22954206]
[1745267369806,0.11455852,87132.0,87127.0,0.11375594]
[1745267370018,0.01147697,87131.0,87128.0,0.11375594]
[1745267370339,0.01499166,87130.0,87128.0,0.11375594]
[1745267370547,0.22954469,87129.0,87128.0,0.11375594]
[1745267370858,0.24454008,87129.0,87128.0,0.11375594]
[1745267371553,0.24454008,87129.0,87128.0,0.11475594]
[1745267372096,0.24454008,87129.0,87128.0,0.11375594]
[1745267372300,0.24454008,87129.0,87128.0,0.11475594]
[1745267372591,0.24454008,87129.0,87128.0,0.11575594]
[1745267374223,0.24454008,87129.0,87128.0,0.002]
[1745267380918,0.31074008,87129.0,87128.0,0.002]
[1745267390816,0.26454008,87129.0,87128.0,0.002]
[1745267394634,0.68044008,87129.0,87128.0,0.002]
[1745267397370,0.77996008,87129.0,87128.0,0.002]
[1745267397575,0.68044008,87129.0,87128.0,0.002]
[1745267397734,0.75996008,87129.0,87128.0,0.002]
[1745267402566,0.79996008,87129.0,87128.0,0.002]
[1745267403384,0.79996008,87129.0,87120.0,0.0004221]
[1745267403385,0.22956577,87121.0,87120.0,0.0004221]
[1745267403578,0.39956577,87121.0,87120.0,0.0004221]
[1745267404888,0.39956577,87121.0,87120.0,0.0014221]
[1745267405820,0.44456577,87121.0,87120.0,0.0014221]
[1745267406489,0.44456577,87121.0,87120.0,0.0004221]
[1745267407678,0.40056577,87121.0,87120.0,0.0004221]
[1745267407966,0.001,87121.0,87120.0,0.0004221]
[1745267408139,0.001,87121.0,87120.0,0.22999051]
[1745267408497,0.001,87121.0,87120.0,0.27889051]
[1745267408965,0.001,87121.0,87120.0,0.29900404]
[1745267409946,0.001,87121.0,87120.0,0.06943563]
[1745267410350,0.23056577,87121.0,87120.0,0.06943563]
[1745267412034,0.001,87121.0,87120.0,0.06943563]
[1745267413122,0.23056577,87121.0,87120.0,0.06943563]
[1745267417717,0.24535345,87121.0,87120.0,0.06943563]
[1745267419633,0.24435345,87121.0,87120.0,0.06943563]
[1745267422681,0.01478768,87121.0,87120.0,0.06943563]
[1745267423696,0.01478768,87121.0,87120.0,0.41275998]
[1745267423920,0.01478768,87121.0,87120.0,0.36385998]
[1745267424124,0.22956577,87121.0,87120.0,0.13429157]
[1745267424328,0.2444445,87121.0,87120.0,0.13429157]
[1745267424700,0.01487873,87121.0,87120.0,0.13429157]
[1745267425279,0.01487873,87121.0,87120.0,0.36385998]
[1745267429809,0.01147789,87124.0,87122.0,0.22956217]
[1745267430071,0.24103576,87124.0,87123.0,0.11375594]
[1745267430436,0.01147763,87126.0,87123.0,0.11375594]
[1745267430644,0.01147763,87126.0,87124.0,0.22955787]
[1745267430872,0.24103107,87126.0,87124.0,0.22955787]
[1745267431040,0.24103107,87126.0,87125.0,0.02011353]
[1745267432226,0.2559098,87126.0,87125.0,0.02011353]
[1745267447027,0.2559098,87126.0,87125.0,0.3634247]
[1745267447028,0.01487873,87126.0,87125.0,0.3634247]
[1745267447225,0.4159,87129.0,87125.0,0.3634247]
[1745267447226,0.4159,87129.0,87127.0,0.22954917]
[1745267447395,0.4159,87129.0,87128.0,0.11375594]
[1745267447590,0.4159,87129.0,87128.0,0.3634168]
[1745267447792,0.4159,87129.0,87128.0,0.4105168]
[1745267448020,0.4159,87148.0,87147.0,0.22949728]
[1745267448359,0.43123277,87148.0,87147.0,0.34325322]
[1745267448737,0.43123277,87148.0,87147.0,0.36336675]
[1745267449178,0.01533277,87148.0,87147.0,0.36336675]
[1745267449392,0.01533277,87148.0,87147.0,0.3779076]
[1745267449597,0.00045613,87148.0,87147.0,0.3779076]
[1745267449990,0.00045613,87148.0,87147.0,0.3789076]
[1745267451371,0.00045613,87148.0,87147.0,0.3779076]
[1745267451571,0.00045613,87148.0,87147.0,0.3799076]
[1745267458218,1e-08,87148.0,87147.0,0.8168076]
[1745267458543,0.0008442,87163.0,87161.0,0.22946042]
[1745267458742,0.00093312,87163.0,87162.0,0.40585458]
[1745267458990,0.00093312,87163.0,87162.0,0.42596811]
[1745267459386,0.00093312,87163.0,87162.0,0.47376811]
[1745267459568,0.00093312,87163.0,87162.0,0.81376811]
[1745267460206,0.00093312,87163.0,87162.0,0.81476811]
[1745267461051,0.00093312,87163.0,87162.0,0.81676811]
[1745267462116,0.00093312,87163.0,87162.0,0.76676811]
[1745267462418,0.00093312,87163.0,87162.0,0.77808061]
[1745267467821,1e-08,87167.0,87166.0,0.67958811]
[1745267468025,1e-08,87170.0,87169.0,0.58398021]
[1745267468226,0.0008442,87183.0,87182.0,0.56940515]
[1745267468435,0.0008442,87183.0,87182.0,0.72966109]
[1745267468873,0.0008442,87183.0,87182.0,0.74977462]
[1745267469015,0.0008442,87183.0,87182.0,0.79787462]
[1745267470016,0.0008442,87183.0,87182.0,0.80640709]
[1745267470234,0.0008442,87183.0,87182.0,0.82294794]
[1745267470685,0.0008442,87183.0,87182.0,0.82494794]
[1745267472458,4e-05,87197.0,87187.0,0.57039199]
[1745267472459,1e-08,87188.0,87187.0,0.57039199]
[1745267472662,4e-05,87197.0,87189.0,0.58392758]
[1745267472869,4e-05,87197.0,87189.0,0.69768352]
[1745267473450,4e-05,87197.0,87189.0,0.71779705]
[1745267473855,4e-05,87197.0,87189.0,0.71989628]
[1745267474941,4e-05,87197.0,87189.0,0.72089628]
[1745267475149,4e-05,87197.0,87189.0,0.72073651]
[1745267475383,4e-05,87197.0,87189.0,0.71773651]
[1745267475806,4e-05,87197.0,87189.0,0.71973651]
[1745267478591,4e-05,87197.0,87189.0,0.72073651]
[1745267479003,4e-05,87197.0,87194.0,0.01146867]
[1745267479220,4e-05,87197.0,87196.0,0.7468651]
[1745267479599,4e-05,87197.0,87196.0,0.76681886]
[1745267480441,4e-05,87197.0,87196.0,0.76781886]
[1745267480999,4e-05,87197.0,87196.0,0.76881886]
[1745267481911,4e-05,87197.0,87196.0,0.71961886]
[1745267483001,4e-05,87197.0,87196.0,0.71761886]
[1745267491686,4e-05,87197.0,87196.0,0.76511886]
[1745267505933,4e-05,87197.0,87196.0,0.71761886]
[1745267506136,0.27680568,87197.0,87196.0,0.1337097]
[1745267506327,0.28838719,87197.0,87196.0,0.01995376]
[1745267506556,0.33488719,87197.0,87196.0,0.01995376]
[1745267513414,0.2293841,87190.0,87186.0,0.22939225]
[1745267513592,0.2293841,87190.0,87184.0,0.2293976]
[1745267513791,0.24097407,87190.0,87184.0,0.2293976]
[1745267513936,0.01158997,87190.0,87184.0,0.01146999]
[1745267514143,0.01158997,87190.0,87189.0,0.02014503]
[1745267515112,0.01158997,87190.0,87189.0,0.02114503]
[1745267515312,0.22938175,87191.0,87189.0,0.02114503]
[1745267515456,0.01158997,87190.0,87189.0,0.02114503]
[1745267515655,0.01158997,87190.0,87189.0,0.02214503]
[1745267515899,0.01158997,87190.0,87189.0,0.25153176]
[1745267516097,0.01158997,87190.0,87189.0,0.25053176]
[1745267517116,0.24084793,87192.0,87189.0,0.25053176]
[1745267517550,0.24084793,87192.0,87190.0,0.0200458]
[1745267518206,0.24084793,87192.0,87191.0,0.0200458]
[1745267519255,0.24084793,87192.0,87191.0,0.0210458]
[1745267520643,0.24084793,87192.0,87191.0,0.0220458]
[1745267520848,0.24084484,87194.0,87191.0,0.25142727]
[1745267521212,0.24084484,87194.0,87192.0,0.0200458]
[1745267521414,0.0008442,87198.0,87196.0,0.22936831]
[1745267521613,0.00104,87197.0,87196.0,0.36317005]
[1745267526887,0.00104,87197.0,87196.0,0.70317005]
[1745267528526,0.00104,87197.0,87196.0,0.68312425]
[1745267535824,0.00072968,87197.0,87196.0,0.68339457]
[1745267548645,0.00072968,87197.0,87196.0,0.11402626]
[1745267548857,0.23009536,87197.0,87196.0,0.00027032]
[1745267549062,0.28749536,87197.0,87196.0,0.00027032]
[1745267549211,0.29883139,87197.0,87196.0,0.00027032]
[1745267549422,0.29849369,87197.0,87196.0,0.00027032]
[1745267550615,0.28849369,87197.0,87196.0,0.00027032]
[1745267550813,0.22937688,87193.0,87190.0,0.22938341]
[1745267551198,0.01146881,87193.0,87190.0,0.22938341]
[1745267551416,0.25218444,87192.0,87190.0,0.22938393]
[1745267551658,0.22938314,87191.0,87189.0,9.923e-05]
[1745267552121,0.22938314,87191.0,87190.0,0.001]
[1745267552993,0.22938314,87191.0,87189.0,9.923e-05]
[1745267553373,0.01146867,87194.0,87191.0,0.24084819]
[1745267553598,0.01146867,87194.0,87191.0,0.22937912]
[1745267553752,0.01146867,87194.0,87192.0,0.22937859]
[1745267553753,0.24084288,87194.0,87192.0,0.22937859]
[1745267553955,0.24084778,87192.0,87189.0,0.00109923]
[1745267554154,0.24084778,87192.0,87189.0,0.00209923]
[1745267554155,0.22938395,87191.0,87189.0,0.00209923]
[1745267554359,0.2293841,87190.0,87189.0,0.00209923]
[1745267554555,0.2293841,87190.0,87189.0,0.00109923]
[1745267554754,0.2293841,87190.0,87189.0,9.923e-05]
[1745267554994,0.24084794,87192.0,87189.0,9.923e-05]
[1745267555558,0.22938192,87191.0,87189.0,9.923e-05]
[1745267555941,0.22938211,87191.0,87189.0,0.00109923]
[1745267556126,0.24084794,87192.0,87189.0,0.23048429]
[1745267556351,0.24084794,87192.0,87189.0,0.00109923]
[1745267556587,0.24084794,87192.0,87190.0,0.2293837]
[1745267556811,0.24084819,87192.0,87189.0,0.2429532]
[1745267557029,0.24084905,87192.0,87189.0,0.2419532]
[1745267557279,0.22938179,87191.0,87189.0,0.2419532]
[1745267557517,0.22938179,87191.0,87189.0,0.2429532]
[1745267557961,0.24084905,87192.0,87189.0,0.2419532]
[1745267558152,0.24084905,87192.0,87189.0,0.2409532]
[1745267558293,0.22938346,87191.0,87189.0,9.923e-05]
[1745267559276,0.22937837,87193.0,87189.0,0.01156856]
[1745267559502,0.22937909,87192.0,87190.0,0.2408533]
[1745267559782,0.24084718,87193.0,87190.0,0.2408533]
[1745267560488,0.24084718,87193.0,87190.0,0.2293841]
[1745267560695,4e-05,87191.0,87189.0,0.24095496]
[1745267560896,4e-05,87191.0,87189.0,0.24156298]
[1745267561239,0.22709813,87192.0,87190.0,0.22938399]
[1745267561434,0.24084779,87192.0,87189.0,0.24156298]
[1745267561643,0.22938157,87191.0,87189.0,0.23009365]
[1745267561846,0.24084779,87192.0,87189.0,0.23009365]
[1745267562086,0.24084868,87192.0,87189.0,0.23009365]
[1745267562521,0.24084868,87192.0,87189.0,0.23109365]
[1745267563015,0.22935496,87202.0,87197.0,0.22936568]
[1745267563214,0.11050788,87200.0,87197.0,0.22936568]
[1745267563572,0.33986571,87200.0,87197.0,0.22936568]
[1745267564878,0.0018442,87198.0,87197.0,0.22936568]
[1745267565250,0.0018842,87198.0,87197.0,0.22936568]
[1745267566696,0.0018842,87198.0,87196.0,0.22936786]
[1745267566830,0.22936568,87197.0,87195.0,0.22937079]
[1745267567253,0.22938147,87191.0,87190.0,0.11375594]
[1745267567421,0.22938147,87191.0,87180.0,0.01147052]
[1745267567618,0.22938147,87191.0,87176.0,0.58089108]
[1745267567818,0.01127589,87190.0,87180.0,0.01147052]
[1745267568640,0.01127589,87190.0,87182.0,0.01147025]
[1745267568777,0.01127589,87190.0,87180.0,0.01147052]
[1745267569188,0.01127589,87190.0,87179.0,0.01147065]
[1745267569694,0.01127589,87190.0,87189.0,0.00170725]
[1745267574891,0.24065999,87190.0,87189.0,0.00170725]
[1745267576766,0.01127589,87190.0,87189.0,0.00170725]
[1745267577139,0.01126035,87190.0,87189.0,0.34484912]
[1745267577242,0.2293841,87190.0,87189.0,0.11546319]
[1745267577469,0.24064445,87190.0,87189.0,0.11546319]
[1745267580477,0.4031146,87190.0,87189.0,0.00170725]
[1745267581045,0.38164445,87190.0,87189.0,0.00170725]
[1745267581488,0.38264445,87190.0,87189.0,0.00170725]
[1745267582458,0.38264445,87190.0,87189.0,0.00070725]
[1745267583091,0.39413224,87190.0,87189.0,0.00070725]
[1745267584041,0.38264445,87190.0,87189.0,0.00070725]
[1745267586507,0.22945515,87163.0,87161.0,0.0004218]
[1745267586904,0.01107764,87162.0,87161.0,0.0004218]
[1745267587782,0.01107764,87162.0,87161.0,0.0024218]
[1745267588197,0.01107764,87162.0,87161.0,0.0004218]
[1745267588701,0.01207764,87162.0,87161.0,0.0004218]
[1745267589304,0.01307764,87162.0,87161.0,0.0004218]
[1745267595310,0.10007764,87162.0,87161.0,0.0004218]
[1745267596159,0.14857764,87162.0,87161.0,0.0004218]
[1745267597557,0.37803543,87162.0,87161.0,0.0004218]
[1745267598187,0.28253543,87162.0,87161.0,0.0004218]
[1745267600198,0.34157543,87162.0,87161.0,0.0004218]
[1745267600631,0.01307764,87162.0,87161.0,0.0004218]
[1745267600841,0.01307764,87162.0,87161.0,0.34363816]
[1745267601009,0.01307764,87162.0,87161.0,0.39213816]
[1745267601245,0.002,87162.0,87161.0,0.39213816]
[1745267601622,0.001,87162.0,87161.0,0.39213816]
[1745267601854,0.10292,87170.0,87169.0,0.22943936]
[1745267602263,0.1135277,87170.0,87169.0,0.22943936]
[1745267603142,0.1145277,87170.0,87169.0,0.22943936]
[1745267603692,0.1165277,87170.0,87169.0,0.24107384]
[1745267603911,0.01147209,87168.0,87164.0,0.01147262]
[1745267604120,0.22944587,87167.0,87165.0,0.11375594]
[1745267604321,0.0106077,87166.0,87165.0,0.11375594]
[1745267605308,0.24291583,87168.0,87165.0,0.34320543]
[1745267605490,0.0106077,87166.0,87165.0,0.34320543]
[1745267605782,0.0116077,87166.0,87165.0,0.11375594]
[1745267605956,0.001,87166.0,87165.0,0.11375594]
[1745267606124,0.0126077,87166.0,87165.0,0.11375594]
[1745267607633,0.002,87166.0,87165.0,0.11375594]
[1745267608477,0.0126077,87166.0,87165.0,0.11375594]
[1745267608664,0.002,87166.0,87165.0,0.11375594]
[1745267610424,0.002,87166.0,87165.0,0.11605032]
[1745267610625,0.002,87166.0,87165.0,0.16525017]
[1745267611216,0.002,87166.0,87165.0,0.39470006]
[1745267611442,0.001,87166.0,87165.0,0.39240583]
[1745267611645,0.002,87166.0,87165.0,0.39240583]
[1745267611856,0.001,87166.0,87165.0,0.39240583]
[1745267612337,0.002,87166.0,87165.0,0.39240583]
[1745267615930,0.001,87166.0,87165.0,0.39240583]
[1745267616611,0.002,87166.0,87165.0,0.39240583]
[1745267617026,0.001,87166.0,87165.0,0.39240583]
[1745267617229,0.002,87166.0,87165.0,0.39240583]
[1745267618311,0.0127126,87166.0,87165.0,0.39240583]
[1745267634922,0.0127126,87166.0,87165.0,0.34320583]
[1745267642251,0.002,87166.0,87165.0,0.34320583]
[1745267643536,0.01265356,87166.0,87165.0,0.34320583]
[1745267647491,0.002,87166.0,87165.0,0.34320583]
[1745267650140,0.01265356,87166.0,87165.0,0.11375594]
[1745267650341,0.24210082,87166.0,87162.0,0.0112087]
[1745267650563,0.22945779,87162.0,87161.0,0.0004218]
[1745267650765,0.24014175,87162.0,87161.0,0.0004218]
[1745267651022,0.28704175,87162.0,87161.0,0.0004218]
[1745267651329,0.29704175,87162.0,87161.0,0.0004218]
[1745267651908,0.29804175,87162.0,87161.0,0.0004218]
[1745267652111,0.29704175,87162.0,87161.0,0.0004218]
[1745267652883,0.28704175,87162.0,87161.0,0.0004218]
[1745267653084,0.28904175,87162.0,87161.0,0.0004218]
[1745267653330,0.29004175,87162.0,87161.0,0.0004218]
[1745267657342,0.29104175,87162.0,87161.0,0.0004218]
[1745267660129,0.30104175,87162.0,87161.0,0.0004218]
[1745267661488,0.71694175,87162.0,87161.0,0.0004218]
[1745267662647,0.43058396,87162.0,87161.0,0.34363816]
[1745267662855,0.43058396,87162.0,87161.0,0.38993816]
[1745267663630,0.42958396,87162.0,87161.0,0.38993816]
[1745267664503,0.42758396,87162.0,87161.0,0.38993816]
[1745267667303,0.01168396,87162.0,87161.0,0.38993816]
[1745267667666,0.001,87162.0,87161.0,0.38993816]
[1745267670801,0.65680352,87172.0,87169.0,0.22943704]
[1745267671003,0.01042674,87171.0,87170.0,0.2294348]
[1745267672466,0.01042674,87171.0,87169.0,0.22943862]
[1745267673124,0.01142674,87171.0,87169.0,0.22943862]
[1745267673332,0.01042674,87171.0,87169.0,0.22943862]
[1745267673484,0.01142674,87171.0,87169.0,0.22943862]
[1745267673690,0.01342674,87171.0,87170.0,0.22943673]
[1745267674213,0.01142674,87171.0,87170.0,0.22943673]
[1745267674541,0.01342674,87171.0,87170.0,0.22943673]
[1745267674836,0.01142674,87171.0,87170.0,0.22943673]
[1745267675183,0.01242674,87171.0,87170.0,0.22943673]
[1745267675456,0.01242674,87171.0,87169.0,0.22943862]
[1745267675636,0.01342674,87171.0,87169.0,0.22943862]
[1745267676319,0.01042674,87171.0,87169.0,0.22943862]
[1745267676535,0.02289844,87171.0,87168.0,0.22944115]
[1745267676755,0.02489844,87171.0,87168.0,0.22944115]
[1745267677436,0.02289844,87171.0,87168.0,0.22944115]
[1745267677806,0.02389844,87171.0,87168.0,0.22944115]
[1745267678031,0.01147196,87169.0,87167.0,0.22944418]
[1745267678380,0.25136271,87168.0,87165.0,0.22944772]
[1745267678954,0.01147236,87166.0,87163.0,0.22945441]
[1745267679196,0.24091685,87167.0,87165.0,0.22944877]
[1745267679685,0.22944989,87165.0,87164.0,0.11375594]
[1745267679880,0.01147223,87167.0,87165.0,0.22944779]
[1745267680230,0.01247223,87167.0,87165.0,0.22944779]
[1745267680611,0.24091786,87167.0,87165.0,0.22944779]
[1745267680833,0.24191786,87167.0,87165.0,0.22944779]
[1745267681077,0.01247223,87167.0,87165.0,0.22944779]
[1745267682315,0.002,87167.0,87165.0,0.22944989]
[1745267682523,0.002,87167.0,87166.0,0.22944726]
[1745267682725,0.01347223,87167.0,87164.0,0.11375594]
[1745267682925,0.24292203,87167.0,87165.0,0.22944953]
[1745267683496,0.24192203,87167.0,87164.0,0.34320759]
[1745267683903,0.24292203,87167.0,87164.0,0.34320682]
[1745267684081,0.24192203,87167.0,87164.0,0.34320682]
[1745267684240,0.24092203,87167.0,87164.0,0.34320682]
[1745267684440,0.24192203,87167.0,87164.0,0.34320682]
[1745267684642,0.22944974,87166.0,87164.0,0.11375594]
[1745267684839,0.22944989,87165.0,87164.0,0.11375594]
[1745267685440,0.01347223,87167.0,87164.0,0.34320846]
[1745267685622,0.01347223,87167.0,87165.0,0.22944989]
[1745267685827,0.24191813,87167.0,87164.0,0.34320808]
[1745267686212,0.24191813,87167.0,87165.0,0.22944905]
[1745267686409,0.001,87166.0,87165.0,0.22944905]
[1745267686689,0.23044726,87166.0,87164.0,0.11375594]
[1745267686937,0.23044989,87165.0,87164.0,0.11375594]
[1745267687345,0.24092722,87164.0,87161.0,0.0004218]
[1745267687497,0.22945779,87162.0,87161.0,0.0004218]
[1745267687840,0.24003386,87162.0,87161.0,0.11417774]
[1745267688051,0.01057607,87162.0,87161.0,0.11417774]
[1745267688884,0.24003386,87162.0,87161.0,0.11417774]
[1745267689982,0.24103386,87162.0,87161.0,0.11417774]
[1745267692154,0.01157607,87162.0,87161.0,0.11417774]
[1745267692355,0.24103386,87162.0,87161.0,0.11417774]
[1745267692572,0.01157607,87162.0,87161.0,0.11417774]
[1745267692776,0.01157607,87162.0,87161.0,0.34363816]
[1745267693995,0.01157607,87162.0,87161.0,0.39063816]
[1745267694225,0.001,87162.0,87161.0,0.39063816]
[1745267703240,0.001,87162.0,87161.0,0.79297901]
[1745267705017,0.22940899,87181.0,87175.0,0.01147117]
[1745267705224,0.25151947,87180.0,87178.0,0.22941476]
[1745267705484,0.25152069,87180.0,87178.0,0.11375594]
[1745267705694,0.22941304,87179.0,87178.0,0.11375594]
[1745267705997,0.25152069,87180.0,87178.0,0.12546952]
[1745267706199,0.24088259,87180.0,87178.0,0.12546952]
[1745267706406,0.0106381,87179.0,87178.0,0.12546952]
[1745267706911,0.0116381,87179.0,87178.0,0.35488519]
[1745267707044,0.0126381,87179.0,87178.0,0.35488519]
[1745267708709,0.24205114,87179.0,87178.0,0.12546952]
[1745267709653,0.24305114,87179.0,87178.0,0.12546952]
[1745267709894,0.0136381,87179.0,87178.0,0.12546952]
[1745267710669,0.24305114,87179.0,87178.0,0.12546952]
[1745267710904,0.0136381,87179.0,87178.0,0.12546952]
[1745267712863,0.24305114,87179.0,87178.0,0.12546952]
[1745267713485,0.0136381,87179.0,87178.0,0.12546952]
[1745267715328,0.0136381,87179.0,87178.0,0.35488519]
[1745267715765,0.0136381,87179.0,87178.0,0.12546952]
[1745267716644,0.24305114,87179.0,87178.0,0.12546952]
[1745267716817,0.0136381,87179.0,87178.0,0.35488519]
[1745267717292,0.0136381,87179.0,87178.0,0.12546952]
[1745267718701,0.24305114,87179.0,87178.0,0.12546952]
[1745267718908,0.0136381,87179.0,87178.0,0.12546952]
[1745267720063,0.24305114,87179.0,87178.0,0.12546952]
[1745267722385,0.24305114,87179.0,87178.0,0.01171358]
[1745267722584,0.24089105,87177.0,87174.0,0.22942577]
[1745267722833,0.24089092,87178.0,87175.0,0.3431778]
[1745267722987,0.01075715,87176.0,87175.0,0.3431778]
[1745267723186,0.22941868,87177.0,87175.0,0.3431778]
[1745267723371,0.01075715,87176.0,87175.0,0.3431778]